bitfinex/quotes_SOLUSD_20250425
["timestamp","ask_amount","ask_price","bid_price","bid_amount"]
[1745580754306,26.0,154.18,154.13,11.84587375]
[1745580754507,11.84587375,154.17,154.13,11.84587375]
[1745580755431,11.84587375,154.16,154.1,16.28520187]
[1745580755613,11.84587375,154.15,154.11,11.84587375]
[1745580756739,11.84587375,154.15,154.1,28.13107562]
[1745580757122,11.84587375,154.16,154.11,11.84587375]
[1745580757441,11.84587375,154.16,154.12,11.84587375]
[1745580758841,11.84587375,154.16,154.11,11.84587375]
[1745580759943,11.84587375,154.16,154.12,6.48845055]
[1745580761153,32.48608808,154.18,154.12,18.3343243]
[1745580761447,7.58619096,154.16,154.12,14.07464151]
[1745580763743,7.58619096,154.17,154.13,7.58619096]
[1745580764255,7.58619096,154.17,154.13,14.0741156]
[1745580764841,7.58619096,154.16,154.13,6.48792464]
[1745580766837,7.58619096,154.17,154.13,6.48792464]
[1745580768127,7.58619096,154.16,154.12,14.07445704]
[1745580768833,7.58619096,154.15,154.11,14.07487915]
[1745580770244,7.58619096,154.16,154.12,7.58619096]
[1745580770555,7.58619096,154.17,154.12,7.58619096]
[1745580770920,32.48595099,154.18,154.11,6.48868819]
[1745580770921,26.0,154.18,154.15,7.58619096]
[1745580771127,7.58619096,154.2,154.12,6.4702]
[1745580771439,6.34288218,154.21,154.12,6.4702]
[1745580771440,7.58619096,154.19,154.15,7.58619096]
[1745580773858,7.58619096,154.19,154.15,14.07317592]
[1745580774535,14.07172494,154.19,154.15,7.58619096]
[1745580774858,7.58619096,154.19,154.15,14.07334005]
[1745580775858,33.58619096,154.2,154.16,7.58619096]
[1745580776443,26.0,154.2,154.17,7.58619096]
[1745580777374,33.58619096,154.2,154.16,7.58619096]
[1745580777759,33.58619096,154.2,154.16,14.07268057]
[1745580780377,33.58619096,154.2,154.16,7.58619096]
[1745580780592,7.58619096,154.17,154.12,20.54457942]
[1745580780756,7.58619096,154.17,154.12,14.05639096]
[1745580780956,7.58619096,154.15,154.11,6.48871199]
[1745580781158,7.58619096,154.15,154.11,14.07490295]
[1745580781373,7.58619096,154.16,154.12,7.58619096]
[1745580782262,7.58619096,154.15,154.1,8.05487481]
[1745580782465,18.64964886,154.19,154.1,0.063]
[1745580782466,7.58619096,154.13,154.1,0.063]
[1745580783163,7.58619096,154.11,154.1,0.063]
[1745580793170,14.07506254,154.11,154.1,0.063]
[1745580794202,7.58619096,154.11,154.1,0.063]
[1745580795189,14.07506254,154.11,154.1,0.063]
[1745580796795,40.07506254,154.11,154.1,0.063]
[1745580796990,58.7247114,154.11,154.1,0.063]
[1745580797192,44.64964886,154.08,154.07,0.063]
[1745580797384,52.23583982,154.08,154.07,0.063]
[1745580798303,33.58619096,154.08,154.07,0.063]
[1745580799606,89.07073865,154.08,154.07,0.063]
[1745580799896,89.07073865,154.08,154.06,0.063]
[1745580800198,26.23583982,154.06,154.05,0.063]
[1745580800592,6.49013499,154.08,154.05,0.063]
[1745580800813,7.58619096,154.06,154.05,0.063]
[1745580803381,7.68619096,154.07,154.05,0.063]
[1745580805080,0.1,154.07,154.05,7.64919096]
[1745580806006,0.1,154.07,154.05,14.14028611]
[1745580806299,0.1,154.07,154.06,7.58619096]
[1745580808101,0.1,154.07,154.06,14.0771685]
[1745580810193,0.1,154.07,154.06,22.1307685]
[1745580810500,0.1,154.07,154.06,23.57088269]
[1745580810814,12.8276796,154.21,154.1,0.14216157]
[1745580811019,7.58619096,154.19,154.11,1.29729714]
[1745580811186,12.8276796,154.21,154.12,7.58619096]
[1745580811187,7.58619096,154.16,154.12,7.58619096]
[1745580811387,11.85443,154.15,154.11,11.85443]
[1745580811710,11.85443,154.14,154.1,18.34336512]
[1745580811894,11.85443,154.14,154.1,11.85443]
[1745580812213,11.85443,154.16,154.12,11.85443]
[1745580812391,26.0,154.16,154.12,11.85443]
[1745580812589,0.03,154.18,154.12,11.85443]
[1745580812791,11.85443,154.17,154.13,11.85443]
[1745580813491,11.85443,154.16,154.12,11.85443]
[1745580813911,11.85443,154.16,154.12,18.34280017]
[1745580816024,11.85443,154.16,154.12,11.85443]
[1745580816322,11.85443,154.13,154.09,11.85443]
[1745580816834,11.85443,154.12,154.08,19.85251718]
[1745580817193,11.85443,154.13,154.09,11.85443]
[1745580818096,11.85443,154.13,154.09,18.34378021]
[1745580818438,18.64964886,154.17,154.11,11.85443]
[1745580818439,11.85443,154.15,154.11,11.85443]
[1745580819102,11.85443,154.14,154.1,11.85443]
[1745580819305,11.85443,154.13,154.09,18.34378021]
[1745580820125,11.85443,154.13,154.09,6.48935021]
[1745580820326,11.85443,154.13,154.09,18.34378021]
[1745580820930,11.85443,154.14,154.1,11.85443]
[1745580821098,11.85443,154.15,154.11,11.85443]
[1745580821301,11.85443,154.15,154.09,22.71363471]
[1745580821302,11.85443,154.17,154.13,11.85443]
[1745580821599,0.03,154.18,154.15,11.85443]
[1745580822006,0.03,154.18,154.17,18.34077624]
[1745580822533,0.03,154.18,154.16,18.34106669]
[1745580824013,0.03,154.18,154.14,19.96992963]
[1745580824234,11.85443,154.17,154.13,6.48786653]
[1745580824551,11.85443,154.16,154.12,6.48827557]
[1745580824711,11.85443,154.13,154.09,11.85443]
[1745580824911,11.85443,154.11,154.08,6.49010115]
[1745580825112,18.64964886,154.15,154.07,19.88593213]
[1745580825408,11.85443,154.12,154.07,19.88593213]
[1745580825847,18.64964886,154.15,154.07,8.03150213]
[1745580825848,11.85443,154.11,154.07,8.03150213]
[1745580826142,11.85443,154.11,154.07,19.88593213]
[1745580829815,26.0,154.13,154.07,19.88593213]
[1745580829816,11.85443,154.12,154.07,19.88593213]
[1745580830017,26.0,154.13,154.09,11.85443]
[1745580830217,37.85443,154.14,154.1,11.85443]
[1745580830521,37.85443,154.14,154.11,6.48887158]
[1745580830838,11.85443,154.13,154.1,6.48913681]
[1745580831219,11.85443,154.12,154.1,6.48913681]
[1745580831443,11.85443,154.13,154.1,6.48913681]
[1745580831834,11.85443,154.14,154.1,18.34356681]
[1745580832150,6.48564184,154.19,154.12,11.85443]
[1745580832348,6.48564184,154.19,154.13,18.3423835]
[1745580832563,11.85443,154.17,154.13,6.4879535]
[1745580832853,11.85443,154.15,154.1,6.48929266]
[1745580833065,11.85443,154.12,154.08,11.85443]
[1745580833356,11.85443,154.14,154.09,11.85443]
[1745580833534,11.85443,154.14,154.1,11.85443]
[1745580834043,18.67964886,154.18,154.1,11.85443]
[1745580834240,11.85443,154.14,154.1,11.85443]
[1745580834746,11.85443,154.13,154.1,6.4892203]
[1745580835137,11.85443,154.14,154.1,18.3436503]
[1745580835353,11.85443,154.14,154.1,6.4892203]
[1745580835573,11.85443,154.14,154.08,16.22533748]
[1745580835574,11.85443,154.12,154.08,18.34456499]
[1745580836344,11.85443,154.13,154.08,18.34456499]
[1745580837134,26.0,154.16,154.11,11.85443]
[1745580837334,11.85443,154.15,154.11,11.85443]
[1745580837534,11.85443,154.15,154.1,11.85443]
[1745580838655,11.85443,154.14,154.1,11.85443]
[1745580838966,32.48700055,154.16,154.11,6.48887158]
[1745580838967,26.0,154.16,154.11,6.48887158]
[1745580839151,0.03,154.18,154.14,11.85443]
[1745580839356,0.03,154.18,154.17,11.85443]
[1745580840437,0.03,154.18,154.15,1.29714633]
[1745580840637,0.03,154.18,154.16,11.85443]
[1745580840870,0.03,154.18,154.15,11.85443]
[1745580841165,0.03,154.18,154.15,18.34150885]
[1745580841669,0.03,154.18,154.16,11.85443]
[1745580842439,0.03,154.18,154.15,18.34150885]
[1745580842769,11.88443,154.18,154.14,6.4874991]
[1745580842971,11.85443,154.17,154.13,6.48797045]
[1745580843150,11.85443,154.17,154.13,18.34240045]
[1745580843352,11.88443,154.18,154.14,11.85443]
[1745580843670,0.03,154.18,154.17,11.85443]
[1745580845175,0.03,154.18,154.17,18.34077624]
[1745580845359,0.03,154.18,154.17,6.48634624]
[1745580846582,11.88443,154.18,154.11,34.87180878]
[1745580846861,11.85443,154.16,154.11,6.48887158]
[1745580847238,11.85443,154.16,154.12,11.85443]
[1745580847436,11.85443,154.17,154.13,11.85443]
[1745580848055,11.85443,154.17,154.13,18.34229387]
[1745580848869,11.85443,154.16,154.1,24.26935165]
[1745580849061,11.85443,154.13,154.08,0.14216157]
[1745580849243,11.85443,154.12,154.08,6.49013499]
[1745580849445,6.48637309,154.17,154.08,18.34456499]
[1745580849446,11.85443,154.13,154.08,18.34456499]
[1745580849768,11.85443,154.13,154.09,11.85443]
[1745580849942,11.85443,154.13,154.09,18.34397761]
[1745580850980,11.85443,154.13,154.09,11.85443]
[1745580851148,11.85443,154.12,154.08,18.34444907]
[1745580851353,11.85443,154.13,154.09,11.85443]
[1745580852659,37.85443,154.12,154.08,11.85443]
[1745580852881,11.85443,154.11,154.07,18.34494614]
[1745580853081,26.0,154.12,154.08,11.85443]
[1745580853263,37.85443,154.12,154.08,11.85443]
[1745580854083,11.85443,154.1,154.06,1.5381]
[1745580854256,11.85443,154.09,154.05,6.55424335]
[1745580855188,11.85443,154.06,154.05,0.063]
[1745580857789,18.34540754,154.06,154.05,0.063]
[1745580858387,38.6434564,154.06,154.05,0.063]
[1745580858690,38.78561797,154.06,154.05,0.063]
[1745580860486,38.78561797,154.06,154.04,0.063]
[1745580860487,11.99659157,154.05,154.04,0.063]
[1745580861906,18.48799046,154.05,154.04,0.063]
[1745580862074,18.64964886,154.04,154.03,0.063]
[1745580862400,0.14216157,154.03,154.02,0.063]
[1745580862592,11.99659157,154.03,154.02,0.063]
[1745580863096,18.64964886,154.02,154.01,0.063]
[1745580863268,33.76734322,154.02,154.01,0.063]
[1745580864095,40.26000651,154.02,154.01,0.063]
[1745580864291,40.40216808,154.02,154.01,0.063]
[1745580864474,0.14216157,154.01,153.96,0.063]
[1745580864679,23.85102157,154.01,153.96,0.063]
[1745580866181,30.34410643,154.01,153.96,0.063]
[1745580867678,48.99375529,154.01,153.96,0.063]
[1745580869104,23.85102157,154.0,153.96,0.063]
[1745580871175,42.50067043,154.0,153.96,0.063]
[1745580871376,44.64964886,153.97,153.96,0.063]
[1745580871590,56.50407886,153.97,153.96,0.063]
[1745580872693,37.85443,153.97,153.96,0.063]
[1745580873385,11.85443,153.97,153.96,0.063]
[1745580873725,86.20542593,154.02,153.96,0.063]
[1745580873726,11.85443,153.99,153.96,0.063]
[1745580873883,37.85443,153.99,153.96,0.063]
[1745580874397,0.037,153.96,153.95,0.063]
[1745580875103,11.89143,153.96,153.95,0.063]
[1745580875980,0.037,153.96,153.95,0.063]
[1745580878707,0.037,153.96,153.95,11.91743]
[1745580879798,0.037,153.96,153.95,26.19754545]
[1745580881813,0.037,153.96,153.95,26.33970702]
[1745580883315,0.037,153.96,153.95,8.20501545]
[1745580883502,0.037,153.96,153.95,0.063]
[1745580883700,0.037,153.96,153.95,6.55861545]
[1745580884006,0.037,153.96,153.95,18.41304545]
[1745580891535,11.89143,153.96,153.95,0.063]
[1745580892738,0.037,153.96,153.95,0.063]
[1745580892904,11.89143,153.96,153.95,0.063]
[1745580893108,0.037,153.96,153.95,0.063]
[1745580894107,11.89143,153.96,153.95,0.063]
[1745580894516,0.037,153.96,153.95,0.063]
[1745580896631,11.89143,153.96,153.95,0.063]
[1745580899447,0.037,153.96,153.95,0.063]
[1745580900328,11.89143,153.96,153.95,0.063]
[1745580900729,11.85443,153.96,153.95,0.026]
[1745580904841,7.60568919,153.97,153.95,0.026]
[1745580906137,30.42275676,154.0,153.95,0.026]
[1745580906315,7.60568919,153.96,153.95,0.026]
[1745580907536,30.42275676,154.0,153.95,0.026]
[1745580907738,7.60568919,153.96,153.95,0.026]
[1745580907933,7.60568919,153.97,153.95,0.026]
[1745580909036,7.60568919,153.96,153.95,0.026]
[1745580909438,7.60568919,153.97,153.95,0.026]
[1745580912748,7.60568919,153.96,153.95,0.026]
[1745580913944,14.10088274,153.96,153.95,0.026]
[1745580914149,32.89269317,153.96,153.95,0.026]
[1745580914345,20.26844886,153.95,153.94,0.063]
[1745580914521,27.87413805,153.95,153.94,0.063]
[1745580914722,26.39749962,153.94,153.93,0.063]
[1745580915961,32.89353703,153.94,153.93,0.063]
[1745580916446,32.75137546,153.94,153.93,0.063]
[1745580917354,32.89353703,153.94,153.93,0.063]
[1745580918155,63.31629379,153.94,153.93,0.063]
[1745580919055,44.64964886,153.92,153.91,0.063]
[1745580919228,52.39749962,153.92,153.91,0.063]
[1745580919427,82.82025638,153.92,153.91,0.063]
[1745580921036,18.68664886,153.93,153.91,0.063]
[1745580921244,7.60568919,153.92,153.91,0.063]
[1745580922460,56.67809481,153.92,153.91,0.063]
[1745580923356,7.60568919,153.92,153.91,0.063]
[1745580927564,7.60568919,153.92,153.91,0.026]
[1745580929363,18.64964886,153.96,153.91,0.026]
[1745580929536,33.60568919,153.92,153.91,0.026]
[1745580931967,38.02844595,153.92,153.89,0.063]
[1745580932256,7.60568919,153.91,153.89,0.063]
[1745580935541,33.60568919,153.91,153.89,0.063]
[1745580936371,7.60568919,153.93,153.89,0.063]
[1745580936543,7.60568919,153.92,153.89,0.063]
[1745580936747,7.60568919,153.92,153.89,6.56114802]
[1745580939269,7.60568919,153.91,153.89,6.56114802]
[1745580941484,7.60568919,153.91,153.89,0.063]
[1745580944455,14.1029928,153.91,153.89,0.063]
[1745580944658,18.64964886,153.9,153.89,0.063]
[1745580944961,26.25533805,153.9,153.89,0.063]
[1745580945673,7.60568919,153.9,153.89,0.063]
[1745580946759,33.60568919,153.9,153.89,0.063]
[1745580946957,32.12330156,154.03,153.89,0.063]
[1745580946958,6.4947717,153.97,153.89,0.063]
[1745580947176,7.60568919,153.91,153.89,0.063]
[1745580947378,26.0,153.9,153.89,0.063]
[1745580948485,0.037,153.89,153.88,14.1672595]
[1745580948860,0.037,153.89,153.88,20.4399595]
[1745580950365,0.037,153.89,153.88,12.83427031]
[1745580950570,0.037,153.89,153.88,20.4399595]
[1745580951161,0.037,153.89,153.88,12.83427031]
[1745580951491,0.037,153.89,153.88,20.4399595]
[1745580953690,0.037,153.89,153.88,12.83427031]
[1745580953867,0.037,153.89,153.88,6.56157031]
[1745580954193,0.037,153.89,153.88,0.063]
[1745580954877,7.60568919,153.91,153.88,0.026]
[1745580955386,6.49579677,153.95,153.88,0.026]
[1745580955590,7.60568919,153.92,153.88,0.026]
[1745580955759,7.60568919,153.91,153.88,0.026]
[1745580955966,7.60568919,153.92,153.88,7.63168919]
[1745580956288,7.60568919,153.93,153.89,14.10383721]
[1745580957715,26.0,153.93,153.89,14.10383721]
[1745580957879,7.60568919,153.91,153.89,6.49814802]
[1745580958079,7.60568919,153.92,153.89,6.49814802]
[1745580962709,7.66868919,153.97,153.94,6.49603741]
[1745580963709,0.063,153.97,153.94,14.1017266]
[1745580964706,7.66868919,153.97,153.93,7.60568919]
[1745580964883,0.063,153.97,153.94,7.60568919]
[1745580965787,26.0,153.96,153.95,6.49561545]
[1745580966389,0.063,153.97,153.95,14.10130464]
[1745580966686,0.063,153.97,153.96,7.60568919]
[1745580967492,0.063,153.97,153.96,15.00433913]
[1745580967907,0.063,153.97,153.96,6.49519355]
[1745580968617,0.063,153.97,153.96,14.10088274]
[1745580973593,0.063,153.97,153.96,15.39955744]
[1745580974620,0.063,153.97,153.96,14.10088274]
[1745580976416,0.063,153.97,153.96,15.74178274]
[1745580976607,1e-08,153.97,153.96,15.88394431]
[1745580976800,1e-08,153.97,153.96,42.06240033]
[1745580978123,1e-08,153.97,153.96,23.41275147]
[1745580980214,1e-08,153.97,153.96,42.06240033]
[1745580982833,1e-08,153.97,153.96,23.41275147]
[1745580983008,1e-08,153.97,153.96,17.18245147]
[1745580983737,1e-08,153.97,153.96,15.74178274]
[1745580983912,1e-08,153.97,153.96,14.10088274]
[1745580992237,1e-08,153.97,153.96,14.24304431]
[1745580993115,1e-08,153.97,153.96,34.19119047]
[1745581000973,1e-08,153.97,153.96,15.39938004]
[1745581001151,1e-08,153.97,153.96,14.10088274]
[1745581010509,7.6056892,153.97,153.9,14.10341498]
[1745581010666,7.60568919,153.93,153.9,6.49772579]
[1745581011290,7.60568919,153.92,153.89,0.03]
[1745581011674,7.60568919,153.93,153.89,7.63568919]
[1745581012294,12.83372157,153.95,153.89,0.03]
[1745581012295,7.60568919,153.91,153.89,0.03]
[1745581012469,7.60568919,153.9,153.89,0.03]
[1745581012891,7.60568919,153.91,153.89,0.03]
[1745581013200,12.83372157,153.95,153.89,0.03]
[1745581013360,7.60568919,153.92,153.89,0.03]
[1745581014792,33.60568919,153.93,153.89,7.63568919]
[1745581015496,33.60568919,153.93,153.89,14.13371835]
[1745581016268,7.60568919,153.92,153.89,6.52802916]
[1745581016581,7.60568919,153.92,153.89,0.03]
[1745581018381,32.49652367,153.93,153.89,0.03]
[1745581018382,7.60568919,153.91,153.89,0.03]
[1745581019079,7.60568919,153.92,153.89,0.03]
[1745581019999,33.60568919,153.93,153.89,7.63568919]
[1745581020204,6.338,153.95,153.9,7.60568919]
[1745581020500,7.60568919,153.94,153.9,7.60568919]
[1745581021222,7.60568919,153.94,153.89,0.03]
[1745581021223,7.60568919,153.94,153.89,7.63568919]
[1745581022085,33.60568919,153.93,153.89,7.63568919]
[1745581023397,7.60568919,153.92,153.89,0.03]
[1745581023592,7.60568919,153.91,153.89,0.03]
[1745581024387,7.60568919,153.92,153.89,0.03]
[1745581024696,33.60568919,153.93,153.89,7.63568919]
[1745581026140,7.60568919,153.92,153.89,0.03]
[1745581026422,7.60568919,153.91,153.89,0.03]
[1745581027479,7.60568919,153.92,153.89,0.03]
[1745581027685,7.60568919,153.93,153.89,7.63568919]
[1745581027886,24.98764886,153.95,153.9,7.60568919]
[1745581028186,7.60568919,153.94,153.9,7.60568919]
[1745581028387,7.60568919,153.92,153.89,0.03]
[1745581029105,7.60568919,153.91,153.89,0.03]
[1745581029299,7.60568919,153.9,153.89,0.03]
[1745581029505,14.10341498,153.9,153.89,0.03]
[1745581031012,40.10341498,153.9,153.89,0.03]
[1745581031409,14.10341498,153.9,153.89,0.03]
[1745581032087,40.10341498,153.9,153.89,0.03]
[1745581032291,32.75306384,153.9,153.89,0.03]
[1745581032503,41.02702541,153.9,153.89,0.03]
[1745581032924,41.02702541,153.9,153.86,0.03]
[1745581032925,44.64964886,153.87,153.86,0.03]
[1745581033224,52.25533805,153.87,153.86,0.03]
[1745581033409,25.16004886,153.85,153.84,0.063]
[1745581033610,76.99065638,153.85,153.84,0.063]
[1745581034302,0.14216157,153.83,153.81,0.03]
[1745581034523,7.74785076,153.83,153.81,0.03]
[1745581034724,7.60568919,153.83,153.81,0.03]
[1745581035317,14.10637176,153.83,153.81,0.03]
[1745581035530,7.60568919,153.83,153.81,0.03]
[1745581036249,32.75602062,153.83,153.81,0.03]
[1745581037930,26.0,153.83,153.81,0.03]
[1745581038145,7.60568919,153.84,153.81,0.03]
[1745581038435,33.60568919,153.83,153.81,0.03]
[1745581039041,58.75602062,153.83,153.81,0.03]
[1745581041733,52.25533805,153.83,153.81,0.03]
[1745581042039,58.75602062,153.83,153.81,0.03]
[1745581044442,33.60568919,153.83,153.81,0.03]
[1745581044633,6.5005093,153.84,153.81,0.03]
[1745581044940,7.60568919,153.83,153.81,0.03]
[1745581046942,14.10637176,153.83,153.81,0.03]
[1745581048220,32.89818219,153.83,153.81,0.03]
[1745581050646,7.60568919,153.83,153.81,0.03]
[1745581050853,6.68569868,153.86,153.82,7.63568919]
[1745581051030,6.68569868,153.86,153.83,7.60568919]
[1745581051357,26.0,153.84,153.83,7.60568919]
[1745581051650,6.68569868,153.86,153.83,7.60568919]
[1745581052349,26.0,153.84,153.83,14.10626932]
[1745581052553,26.0,153.84,153.82,14.13664233]
[1745581053660,26.0,153.84,153.83,7.60568919]
[1745581054163,26.0,153.84,153.82,7.63568919]
[1745581054335,26.0,153.84,153.82,0.03]
[1745581054537,26.0,153.84,153.82,6.53100006]
[1745581055021,26.0,153.84,153.82,14.13668925]
[1745581055233,26.0,153.84,153.82,6.53100006]
[1745581055730,26.0,153.84,153.82,14.13668925]
[1745581056745,26.0,153.84,153.82,0.03]
[1745581057432,33.60568919,153.84,153.82,0.03]
[1745581057645,26.0,153.84,153.82,0.03]
[1745581058182,33.60568919,153.84,153.82,0.03]
[1745581058553,7.60568919,153.83,153.82,0.03]
[1745581059067,33.60568919,153.84,153.82,0.03]
[1745581062481,26.0,153.84,153.82,0.03]
[1745581062856,33.60568919,153.84,153.82,0.03]
[1745581063677,7.60568919,153.83,153.82,0.03]
[1745581064578,33.60568919,153.84,153.82,0.03]
[1745581065089,7.60568919,153.85,153.82,0.03]
[1745581065979,7.60568919,153.84,153.82,0.03]
[1745581066176,7.60568919,153.83,153.82,0.03]
[1745581069780,33.60568919,153.83,153.82,0.03]
[1745581071766,18.64964886,153.9,153.82,7.63568919]
[1745581071987,7.60568919,153.9,153.86,7.60568919]
[1745581072686,26.0,153.89,153.86,7.60568919]
[1745581073059,26.0,153.89,153.86,14.10501889]
[1745581073558,26.0,153.89,153.86,6.4993297]
[1745581073784,26.0,153.89,153.86,14.10501889]
[1745581076318,0.063,153.91,153.88,7.60568919]
[1745581076521,0.063,153.91,153.9,7.60568919]
[1745581077010,0.063,153.91,153.89,6.5933]
[1745581077179,0.063,153.91,153.9,7.60568919]
[1745581078308,0.063,153.91,153.9,14.10341498]
[1745581084485,0.063,153.91,153.88,13.76]
[1745581084685,7.66868919,153.91,153.88,6.4984631]
[1745581085105,0.063,153.91,153.88,14.10415229]
[1745581085597,7.66868919,153.91,153.86,8.02828419]
[1745581085798,7.60568919,153.9,153.86,15.63397338]
[1745581086298,7.66868919,153.91,153.87,7.60568919]
[1745581086495,0.063,153.91,153.86,8.02828419]
[1745581086696,0.063,153.91,153.89,7.60568919]
[1745581087493,0.063,153.91,153.86,8.02828419]
[1745581087795,7.60568919,153.9,153.86,15.63397338]
[1745581087997,7.66868919,153.91,153.87,7.60568919]
[1745581088294,0.063,153.91,153.88,7.60568919]
[1745581088502,0.063,153.91,153.88,14.10410861]
[1745581088700,7.66868919,153.91,153.87,14.10461458]
[1745581089110,7.66868919,153.91,153.87,6.49892539]
[1745581089292,7.66868919,153.91,153.87,14.10461458]
[1745581090435,0.063,153.91,153.88,7.60568919]
[1745581090639,0.063,153.91,153.88,14.10411595]
[1745581090794,0.063,153.91,153.87,6.49883542]
[1745581090994,7.60568919,153.9,153.85,6.4998375]
[1745581091225,7.66868919,153.91,153.87,7.60568919]
[1745581091728,7.60568919,153.9,153.86,7.60568919]
[1745581092223,7.60568919,153.89,153.85,14.10552669]
[1745581092424,7.60568919,153.87,153.82,1.5626]
[1745581092612,7.60568919,153.85,153.82,6.5309636]
[1745581092806,7.60568919,153.85,153.82,0.03]
[1745581093105,7.60568919,153.84,153.82,0.03]
[1745581093829,7.60568919,153.85,153.82,0.03]
[1745581094130,7.60568919,153.86,153.82,7.63568919]
[1745581094312,7.60568919,153.85,153.82,6.53109693]
[1745581094494,7.60568919,153.85,153.82,0.03]
[1745581094700,7.60568919,153.83,153.82,0.03]
[1745581095058,33.60568919,153.84,153.82,0.03]
[1745581096552,7.60568919,153.83,153.82,0.03]
[1745581097236,22.72304274,153.89,153.82,0.03]
[1745581097237,26.0,153.85,153.82,0.03]
[1745581097561,26.0,153.85,153.82,7.63568919]
[1745581098051,33.60568919,153.85,153.82,0.03]
[1745581098255,7.60568919,153.84,153.82,0.03]
[1745581098554,7.60568919,153.83,153.82,0.03]
[1745581101147,26.0,153.85,153.82,0.03]
[1745581101350,7.60568919,153.84,153.82,0.03]
[1745581101555,7.60568919,153.83,153.82,0.03]
[1745581102234,7.60568919,153.84,153.82,0.03]
[1745581103155,33.60568919,153.84,153.82,0.03]
[1745581105072,26.0,153.84,153.82,0.03]
[1745581105369,6.4775,153.89,153.82,7.63568919]
[1745581105370,26.0,153.85,153.82,7.63568919]
[1745581106164,6.49830981,153.89,153.83,7.60568919]
[1745581106471,26.0,153.86,153.83,7.60568919]
[1745581106762,26.0,153.86,153.84,6.50026001]
[1745581108270,141.16945638,153.85,153.82,0.03]
[1745581108435,18.79181043,153.83,153.77,0.03]
[1745581108763,18.79181043,153.81,153.77,0.03]
[1745581109935,18.79181043,153.79,153.77,0.03]
[1745581110666,26.25533805,153.78,153.77,0.03]
[1745581111388,30.56614235,153.78,153.77,0.03]
[1745581111959,37.21110012,153.78,153.77,0.03]
[1745581116759,40.45711592,153.78,153.77,0.03]
[1745581117983,40.45711592,153.78,153.67,1.5543]
[1745581117984,26.0,153.74,153.67,1.5543]
[1745581118176,18.56314315,153.74,153.67,1.5543]
[1745581119084,18.56314315,153.74,153.7,0.03]
[1745581120381,16.9260158,153.78,153.71,11.91649349]
[1745581120586,11.91649349,153.75,153.71,11.91649349]
[1745581120787,26.0,153.74,153.71,11.91649349]
[1745581122097,37.91649349,153.74,153.7,18.45243061]
[1745581122906,11.91649349,153.76,153.72,11.91649349]
[1745581123069,11.91649349,153.77,153.72,11.91649349]
[1745581124292,11.91649349,153.77,153.72,18.42149898]
[1745581125892,26.0,153.77,153.74,11.91649349]
[1745581126669,13.68,153.82,153.76,11.91649349]
[1745581127085,26.0,153.8,153.76,11.91649349]
[1745581127699,11.91649349,153.81,153.77,6.50321909]
[1745581128204,26.0,153.79,153.77,6.50321909]
[1745581128383,26.0,153.79,153.76,18.4200035]
[1745581128887,11.91649349,153.77,153.74,6.50448809]
[1745581129085,11.91649349,153.78,153.74,18.42098158]
[1745581130876,6.50202005,153.8,153.74,18.42098158]
[1745581131093,11.91649349,153.78,153.74,6.50448809]
[1745581131396,11.91649349,153.77,153.73,14.45396948]
[1745581131703,11.91649349,153.77,153.73,8.16166948]
[1745581131877,11.91649349,153.77,153.73,20.07816297]
[1745581134181,11.91649349,153.77,153.73,8.16166948]
[1745581134388,11.91649349,153.77,153.73,20.07816297]
[1745581134703,37.91649349,153.78,153.74,11.91649349]
[1745581134870,37.91649349,153.78,153.73,8.16166948]
[1745581135076,37.91649349,153.78,153.73,20.07816297]
[1745581135504,37.91649349,153.78,153.74,11.91649349]
[1745581136603,37.91649349,153.78,153.74,18.4206092]
[1745581137317,33.62360304,153.78,153.74,14.12771875]
[1745581139109,33.62360304,153.78,153.74,7.62360304]
[1745581139413,7.62360304,153.77,153.73,15.78524589]
[1745581139597,7.62360304,153.76,153.73,0.03]